[Event "Titled Tuesday Blitz June 27 Late 2023"]
[White "Ezat, Mohamed"]
[Black "Guzman Moneo, Alberto"]
[WhiteFideId "10600906"]
[BlackFideId "2209616"]
[WhiteElo "2572"]
[BlackElo "2371"]
[Result "0-1"]
[Round "3"]
[TimeControl "180+2"]
[Date "2023.06.27"]
[WhiteClock "0:00:07"]
[BlackClock "0:00:13"]
[Board "113"]

1. d4 {[%clk 0:03:00]}  Nf6 {[%clk 0:02:59]} 2. c4 {[%clk 0:03:00]}  c5 {[%clk 0:02:59]} 3. d5 {[%clk 0:03:00]}  b5 {[%clk 0:03:00]} 4. cxb5 {[%clk 0:03:00]}  a6 {[%clk 0:03:00]} 5. Nc3 {[%clk 0:03:00]}  g6 {[%clk 0:02:59]} 6. e4 {[%clk 0:02:59]}  d6 {[%clk 0:03:00]} 7. Be2 {[%clk 0:02:53]}  axb5 {[%clk 0:02:58]} 8. Bxb5+ {[%clk 0:02:48]}  Nbd7 {[%clk 0:02:56]} 9. Nf3 {[%clk 0:02:44]}  Ba6 {[%clk 0:02:56]} 10. Bxa6 {[%clk 0:02:41]}  Rxa6 {[%clk 0:02:55]} 11. O-O {[%clk 0:02:41]}  Bg7 {[%clk 0:02:55]} 12. Re1 {[%clk 0:02:41]}  O-O {[%clk 0:02:53]} 13. e5 {[%clk 0:02:38]}  dxe5 {[%clk 0:02:51]} 14. Nxe5 {[%clk 0:02:38]}  Nxe5 {[%clk 0:02:50]} 15. Rxe5 {[%clk 0:02:39]}  Ne8 {[%clk 0:02:46]} 16. Re1 {[%clk 0:02:34]}  Nd6 {[%clk 0:02:46]} 17. Qe2 {[%clk 0:02:33]}  Ra7 {[%clk 0:02:41]} 18. Be3 {[%clk 0:02:32]}  Qa5 {[%clk 0:02:36]} 19. h4 {[%clk 0:02:25]}  h5 {[%clk 0:02:35]} 20. a4 {[%clk 0:02:17]}  Rb7 {[%clk 0:02:33]} 21. Rac1 {[%clk 0:02:08]}  Rfb8 {[%clk 0:02:22]} 22. Bf4 {[%clk 0:02:03]}  Rxb2 {[%clk 0:02:14]} 23. Qxe7 {[%clk 0:01:46]}  Nf5 {[%clk 0:02:07]} 24. Qg5 {[%clk 0:01:14]}  Bxc3 {[%clk 0:01:54]} 25. Bxb8 {[%clk 0:01:13]}  Bxe1 {[%clk 0:01:45]} 26. Be5 {[%clk 0:01:08]}  Bxf2+ {[%clk 0:01:38]} 27. Kh1 {[%clk 0:01:08]}  Bxh4 {[%clk 0:01:28]} 28. Qf4 {[%clk 0:00:54]}  Bg3 {[%clk 0:01:15]} 29. Qe4 {[%clk 0:00:52]}  Bxe5 {[%clk 0:01:08]} 30. Qxe5 {[%clk 0:00:51]}  Qd2 {[%clk 0:01:07]} 31. Rg1 {[%clk 0:00:52]}  Qd4 {[%clk 0:01:02]} 32. Qe8+ {[%clk 0:00:50]}  Kg7 {[%clk 0:01:01]} 33. Qd8 {[%clk 0:00:49]}  Rd2 {[%clk 0:00:59]} 34. a5 {[%clk 0:00:47]}  Qxd5 {[%clk 0:00:59]} 35. Qxd5 {[%clk 0:00:47]}  Rxd5 {[%clk 0:01:00]} 36. Ra1 {[%clk 0:00:47]}  Rd7 {[%clk 0:00:59]} 37. a6 {[%clk 0:00:47]}  Ra7 {[%clk 0:01:00]} 38. Ra5 {[%clk 0:00:47]}  c4 {[%clk 0:01:00]} 39. Kg1 {[%clk 0:00:47]}  c3 {[%clk 0:01:00]} 40. Kf2 {[%clk 0:00:46]}  c2 {[%clk 0:01:00]} 41. Rc5 {[%clk 0:00:46]}  Rxa6 {[%clk 0:00:59]} 42. Rxc2 {[%clk 0:00:45]}  Rd6 {[%clk 0:00:59]} 43. Rc7 {[%clk 0:00:44]}  Rd4 {[%clk 0:00:58]} 44. Kg1 {[%clk 0:00:44]}  Rg4 {[%clk 0:00:58]} 45. Kh2 {[%clk 0:00:44]}  Ne3 {[%clk 0:00:58]} 46. g3 {[%clk 0:00:44]}  Nf1+ {[%clk 0:00:58]} 47. Kh3 {[%clk 0:00:44]}  Nxg3 {[%clk 0:00:57]} 48. Rc1 {[%clk 0:00:41]}  Nf5 {[%clk 0:00:56]} 49. Rc2 {[%clk 0:00:41]}  Rg3+ {[%clk 0:00:55]} 50. Kh2 {[%clk 0:00:41]}  h4 {[%clk 0:00:55]} 51. Rc4 {[%clk 0:00:41]}  g5 {[%clk 0:00:54]} 52. Rc5 {[%clk 0:00:41]}  Kg6 {[%clk 0:00:54]} 53. Rc6+ {[%clk 0:00:41]}  f6 {[%clk 0:00:54]} 54. Rc8 {[%clk 0:00:42]}  Nh6 {[%clk 0:00:54]} 55. Rc4 {[%clk 0:00:39]}  f5 {[%clk 0:00:54]} 56. Kh1 {[%clk 0:00:40]}  g4 {[%clk 0:00:54]} 57. Kh2 {[%clk 0:00:40]}  Kg5 {[%clk 0:00:53]} 58. Rc8 {[%clk 0:00:39]}  Nf7 {[%clk 0:00:51]} 59. Rc5 {[%clk 0:00:37]}  Rf3 {[%clk 0:00:48]} 60. Ra5 {[%clk 0:00:35]}  Re3 {[%clk 0:00:47]} 61. Rb5 {[%clk 0:00:35]}  Ne5 {[%clk 0:00:47]} 62. Rb8 {[%clk 0:00:33]}  Nf3+ {[%clk 0:00:47]} 63. Kg2 {[%clk 0:00:34]}  Re2+ {[%clk 0:00:47]} 64. Kf1 {[%clk 0:00:34]}  Ra2 {[%clk 0:00:48]} 65. Rg8+ {[%clk 0:00:30]}  Kf4 {[%clk 0:00:48]} 66. Rxg4+ {[%clk 0:00:29]}  Ke3 {[%clk 0:00:35]} 67. Re4+ {[%clk 0:00:27]}  Kd3 {[%clk 0:00:32]} 68. Re3+ {[%clk 0:00:27]}  Kd4 {[%clk 0:00:27]} 69. Rxf3 {[%clk 0:00:18]}  Ke4 {[%clk 0:00:24]} 70. Rh3 {[%clk 0:00:18]}  f4 {[%clk 0:00:23]} 71. Rxh4 {[%clk 0:00:18]}  Ke3 {[%clk 0:00:24]} 72. Rh8 {[%clk 0:00:14]}  Ra1+ {[%clk 0:00:24]} 73. Kg2 {[%clk 0:00:14]}  f3+ {[%clk 0:00:24]} 74. Kh2 {[%clk 0:00:06]}  Ra2+ {[%clk 0:00:20]} 75. Kg3 {[%clk 0:00:02]}  Rg2+ {[%clk 0:00:19]} 76. Kh3 {[%clk 0:00:03]}  Kf2 {[%clk 0:00:19]} 77. Re8 {[%clk 0:00:03]}  Rg5 {[%clk 0:00:19]} 78. Rf8 {[%clk 0:00:03]}  Ke2 {[%clk 0:00:19]} 79. Re8+ {[%clk 0:00:03]}  Kf1 {[%clk 0:00:19]} 80. Rf8 {[%clk 0:00:03]}  f2 {[%clk 0:00:19]} 81. Re8 {[%clk 0:00:03]}  Kg1 {[%clk 0:00:17]} 82. Rf8 {[%clk 0:00:03]}  f1=Q+ {[%clk 0:00:16]} 83. Kh4 {[%clk 0:00:01]}  Qxf8 {[%clk 0:00:15]} 84. Kxg5 {[%clk 0:00:01]}  Qf2 {[%clk 0:00:16]} 85. Kg6 {[%clk 0:00:02]}  Qf3 {[%clk 0:00:16]} 86. Kh7 {[%clk 0:00:03]}  Qg4 {[%clk 0:00:16]} 87. Kh6 {[%clk 0:00:03]}  Kf2 {[%clk 0:00:15]} 88. Kh7 {[%clk 0:00:04]}  Kf3 {[%clk 0:00:14]} 89. Kh6 {[%clk 0:00:05]}  Kf4 {[%clk 0:00:14]} 90. Kh7 {[%clk 0:00:06]}  Kf5 {[%clk 0:00:14]} 91. Kh6 {[%clk 0:00:07]}  Qg6# {[%clk 0:00:13]} 0-1


[Site "https://www.chess.com"]

[Event "Titled Tuesday Blitz June 27 Late 2023"]
[White "Wendt, Jan-Dietrich"]
[Black "Nefedov, Sergey"]
[WhiteFideId "4623797"]
[BlackFideId "24113417"]
[WhiteElo "2370"]
[BlackElo "2568"]
[Result "0-1"]
[Round "3"]
[TimeControl "180+2"]
[Date "2023.06.27"]
[WhiteClock "0:00:06"]
[BlackClock "0:00:11"]
[Board "114"]

1. Nf3 {[%clk 0:02:50]}  d5 {[%clk 0:02:59]} 2. c4 {[%clk 0:02:50]}  e6 {[%clk 0:02:59]} 3. g3 {[%clk 0:02:48]}  g6 {[%clk 0:02:59]} 4. Bg2 {[%clk 0:02:48]}  Bg7 {[%clk 0:03:00]} 5. O-O {[%clk 0:02:48]}  Ne7 {[%clk 0:02:59]} 6. Nc3 {[%clk 0:02:48]}  O-O {[%clk 0:02:59]} 7. d4 {[%clk 0:02:47]}  Nbc6 {[%clk 0:02:59]} 8. cxd5 {[%clk 0:02:44]}  exd5 {[%clk 0:02:58]} 9. b3 {[%clk 0:02:43]}  Bg4 {[%clk 0:02:58]} 10. e3 {[%clk 0:02:41]}  Qd7 {[%clk 0:02:55]} 11. Ba3 {[%clk 0:02:39]}  Rfe8 {[%clk 0:02:54]} 12. Qd3 {[%clk 0:02:23]}  Bh3 {[%clk 0:02:49]} 13. Rac1 {[%clk 0:02:15]}  Bxg2 {[%clk 0:02:48]} 14. Kxg2 {[%clk 0:02:16]}  Nf5 {[%clk 0:02:48]} 15. Qb5 {[%clk 0:02:09]}  Qc8 {[%clk 0:01:27]} 16. Nxd5 {[%clk 0:01:59]}  a6 {[%clk 0:01:26]} 17. Qd3 {[%clk 0:01:50]}  Qd7 {[%clk 0:01:25]} 18. Nf4 {[%clk 0:01:37]}  Rad8 {[%clk 0:01:25]} 19. Rfd1 {[%clk 0:01:35]}  h5 {[%clk 0:01:23]} 20. h4 {[%clk 0:01:34]}  Bh6 {[%clk 0:01:22]} 21. d5 {[%clk 0:01:16]}  Bxf4 {[%clk 0:01:10]} 22. exf4 {[%clk 0:01:12]}  Ncd4 {[%clk 0:00:35]} 23. Nxd4 {[%clk 0:01:07]}  Qxd5+ {[%clk 0:00:33]} 24. Qf3 {[%clk 0:00:51]}  Nxd4 {[%clk 0:00:33]} 25. Qxd5 {[%clk 0:00:50]}  Rxd5 {[%clk 0:00:34]} 26. Bc5 {[%clk 0:00:35]}  Ne2 {[%clk 0:00:20]} 27. Rxd5 {[%clk 0:00:18]}  Nxc1 {[%clk 0:00:20]} 28. Rd2 {[%clk 0:00:17]}  Re2 {[%clk 0:00:20]} 29. Rxe2 {[%clk 0:00:16]}  Nxe2 {[%clk 0:00:19]} 30. Bb4 {[%clk 0:00:16]}  f5 {[%clk 0:00:18]} 31. Bd2 {[%clk 0:00:15]}  Kf7 {[%clk 0:00:17]} 32. Kf3 {[%clk 0:00:15]}  Nd4+ {[%clk 0:00:17]} 33. Ke3 {[%clk 0:00:15]}  Nc6 {[%clk 0:00:13]} 34. Kd3 {[%clk 0:00:14]}  Ke6 {[%clk 0:00:14]} 35. Kc4 {[%clk 0:00:14]}  Kd6 {[%clk 0:00:13]} 36. Be3 {[%clk 0:00:14]}  b5+ {[%clk 0:00:12]} 37. Kd3 {[%clk 0:00:14]}  Nb4+ {[%clk 0:00:13]} 38. Kc3 {[%clk 0:00:14]}  Nxa2+ {[%clk 0:00:13]} 39. Kb2 {[%clk 0:00:14]}  Nb4 {[%clk 0:00:13]} 40. Kc3 {[%clk 0:00:11]}  Nd5+ {[%clk 0:00:12]} 41. Kd4 {[%clk 0:00:11]}  c5+ {[%clk 0:00:11]} 42. Kd3 {[%clk 0:00:11]}  Nxe3 {[%clk 0:00:11]} 43. fxe3 {[%clk 0:00:06]}  Kd5 {[%clk 0:00:11]} 0-1


[Site "https://www.chess.com"]

[Event "Titled Tuesday Blitz June 27 Late 2023"]
[White "Ambartsumova, Karina"]
[Black "Shapiro, Daniel"]
[WhiteFideId "4166299"]
[BlackFideId "2001780"]
[WhiteElo "2558"]
[BlackElo "2331"]
[Result "1-0"]
[Round "3"]
[TimeControl "180+2"]
[Date "2023.06.27"]
[WhiteClock "0:00:06"]
[BlackClock "0:00:00"]
[Board "119"]

1. Nf3 {[%clk 0:03:00]}  Nf6 {[%clk 0:03:00]} 2. c4 {[%clk 0:02:59]}  e6 {[%clk 0:02:45]} 3. g3 {[%clk 0:02:57]}  d5 {[%clk 0:02:44]} 4. Bg2 {[%clk 0:02:58]}  Be7 {[%clk 0:02:40]} 5. O-O {[%clk 0:02:57]}  O-O {[%clk 0:02:40]} 6. b3 {[%clk 0:02:57]}  c6 {[%clk 0:02:36]} 7. Bb2 {[%clk 0:02:56]}  a5 {[%clk 0:02:36]} 8. Nc3 {[%clk 0:02:42]}  b6 {[%clk 0:02:33]} 9. e3 {[%clk 0:02:37]}  Nbd7 {[%clk 0:02:31]} 10. Qe2 {[%clk 0:02:36]}  Ba6 {[%clk 0:02:31]} 11. d3 {[%clk 0:02:27]}  b5 {[%clk 0:02:27]} 12. cxb5 {[%clk 0:01:59]}  cxb5 {[%clk 0:02:27]} 13. Nd4 {[%clk 0:01:58]}  Qb6 {[%clk 0:02:25]} 14. Rac1 {[%clk 0:01:53]}  g6 {[%clk 0:02:24]} 15. h4 {[%clk 0:01:43]}  e5 {[%clk 0:02:18]} 16. Nc2 {[%clk 0:01:36]}  e4 {[%clk 0:02:17]} 17. Rfd1 {[%clk 0:00:38]}  b4 {[%clk 0:02:17]} 18. Na4 {[%clk 0:00:36]}  Qa7 {[%clk 0:02:13]} 19. Ne1 {[%clk 0:00:34]}  h5 {[%clk 0:01:54]} 20. Qd2 {[%clk 0:00:30]}  Rfd8 {[%clk 0:01:35]} 21. Bd4 {[%clk 0:00:25]}  Qb7 {[%clk 0:01:32]} 22. Qb2 {[%clk 0:00:25]}  Rac8 {[%clk 0:01:16]} 23. dxe4 {[%clk 0:00:25]}  dxe4 {[%clk 0:01:15]} 24. Rxc8 {[%clk 0:00:23]}  Rxc8 {[%clk 0:01:12]} 25. Nd3 {[%clk 0:00:23]}  Bxd3 {[%clk 0:00:44]} 26. Rxd3 {[%clk 0:00:23]}  Qc7 {[%clk 0:00:42]} 27. Rd2 {[%clk 0:00:20]}  Qc1+ {[%clk 0:00:28]} 28. Bf1 {[%clk 0:00:20]}  Qxb2 {[%clk 0:00:26]} 29. Nxb2 {[%clk 0:00:21]}  Nd5 {[%clk 0:00:20]} 30. Bc4 {[%clk 0:00:18]}  N7f6 {[%clk 0:00:18]} 31. Na4 {[%clk 0:00:15]}  Rd8 {[%clk 0:00:11]} 32. Kg2 {[%clk 0:00:15]}  Kf8 {[%clk 0:00:11]} 33. Nc5 {[%clk 0:00:14]}  Ke8 {[%clk 0:00:10]} 34. Bb5+ {[%clk 0:00:14]}  Kf8 {[%clk 0:00:10]} 35. Nb7 {[%clk 0:00:13]}  Rb8 {[%clk 0:00:08]} 36. Bc6 {[%clk 0:00:12]}  Nc3 {[%clk 0:00:07]} 37. Nxa5 {[%clk 0:00:12]}  Rc8 {[%clk 0:00:06]} 38. Rc2 {[%clk 0:00:07]}  Bd8 {[%clk 0:00:06]} 39. Bb7 {[%clk 0:00:07]}  Rb8 {[%clk 0:00:05]} 40. Ba7 {[%clk 0:00:06]}  Rxb7 {[%clk 0:00:04]} 41. Nxb7 {[%clk 0:00:07]}  Be7 {[%clk 0:00:04]} 42. Bc5 {[%clk 0:00:06]}  Nfd5 {[%clk 0:00:04]} 43. Bxe7+ {[%clk 0:00:06]}  Kxe7 {[%clk 0:00:05]} 44. Nc5 {[%clk 0:00:06]}  Kd6 {[%clk 0:00:05]} 45. Na4 {[%clk 0:00:07]}  Kc6 {[%clk 0:00:03]} 46. Nxc3 {[%clk 0:00:06]}  bxc3 {[%clk 0:00:03]} 47. Kf1 {[%clk 0:00:06]}  Kc5 {[%clk 0:00:03]} 48. a3 {[%clk 0:00:06]}  Kb5 {[%clk 0:00:03]} 49. Ke2 {[%clk 0:00:07]}  Kc5 {[%clk 0:00:03]} 50. f3 {[%clk 0:00:07]}  f5 {[%clk 0:00:02]} 51. fxe4 {[%clk 0:00:06]}  fxe4 {[%clk 0:00:03]} 52. Rc1 {[%clk 0:00:06]}  Kb5 {[%clk 0:00:03]} 53. Re1 {[%clk 0:00:06]}  Kc5 {[%clk 0:00:03]} 54. Kd1 {[%clk 0:00:06]}  Kb5 {[%clk 0:00:03]} 55. Kc2 {[%clk 0:00:07]}  Kc5 {[%clk 0:00:03]} 56. Re2 {[%clk 0:00:06]}  Kb5 {[%clk 0:00:03]} 57. Kc1 {[%clk 0:00:05]}  Kc5 {[%clk 0:00:03]} 58. Kc2 {[%clk 0:00:05]}  Kb5 {[%clk 0:00:04]} 59. Re1 {[%clk 0:00:05]}  Kc5 {[%clk 0:00:04]} 60. Kd1 {[%clk 0:00:05]}  Kb5 {[%clk 0:00:04]} 61. Ke2 {[%clk 0:00:06]}  Kc5 {[%clk 0:00:04]} 62. Rf1 {[%clk 0:00:06]}  Kd6 {[%clk 0:00:00]} 63. Rf8 {[%clk 0:00:06]} 1-0


[Site "https://www.chess.com"]

[Event "Titled Tuesday Blitz June 27 Late 2023"]
[White "Garmendiarov"]
[Black "Domingo Nunez, Ruben"]
[BlackFideId "22245570"]
[WhiteElo "2318"]
[BlackElo "2551"]
[Result "0-1"]
[Round "3"]
[TimeControl "180+2"]
[Date "2023.06.27"]
[WhiteClock "0:00:08"]
[BlackClock "0:02:22"]
[Board "121"]

1. d4 {[%clk 0:03:00]}  a6 {[%clk 0:02:59]} 2. e4 {[%clk 0:02:59]}  h6 {[%clk 0:03:00]} 3. Nc3 {[%clk 0:02:58]}  g6 {[%clk 0:03:00]} 4. Nf3 {[%clk 0:02:58]}  Bg7 {[%clk 0:03:01]} 5. Bc4 {[%clk 0:02:59]}  d6 {[%clk 0:03:01]} 6. a4 {[%clk 0:02:58]}  b6 {[%clk 0:03:00]} 7. Be3 {[%clk 0:02:53]}  Bb7 {[%clk 0:03:00]} 8. Qd2 {[%clk 0:02:53]}  e6 {[%clk 0:02:58]} 9. Bb3 {[%clk 0:02:46]}  Nf6 {[%clk 0:02:55]} 10. d5 {[%clk 0:02:10]}  e5 {[%clk 0:02:54]} 11. h3 {[%clk 0:02:05]}  Nbd7 {[%clk 0:02:54]} 12. a5 {[%clk 0:01:44]}  b5 {[%clk 0:02:52]} 13. Qd3 {[%clk 0:01:35]}  Nh5 {[%clk 0:02:46]} 14. g3 {[%clk 0:01:29]}  O-O {[%clk 0:02:46]} 15. O-O {[%clk 0:01:05]}  Nc5 {[%clk 0:02:45]} 16. Qd2 {[%clk 0:01:00]}  Kh8 {[%clk 0:02:45]} 17. Bxh6 {[%clk 0:00:56]}  f5 {[%clk 0:02:45]} 18. Bxg7+ {[%clk 0:00:47]}  Kxg7 {[%clk 0:02:45]} 19. Ng5 {[%clk 0:00:44]}  f4 {[%clk 0:02:43]} 20. Ne6+ {[%clk 0:00:27]}  Nxe6 {[%clk 0:02:43]} 21. dxe6 {[%clk 0:00:28]}  Qg5 {[%clk 0:02:30]} 22. Nd5 {[%clk 0:00:13]}  Rac8 {[%clk 0:02:30]} 23. Kh1 {[%clk 0:00:11]}  Rh8 {[%clk 0:02:27]} 24. g4 {[%clk 0:00:10]}  Ng3+ {[%clk 0:02:26]} 25. fxg3 {[%clk 0:00:09]}  Rxh3+ {[%clk 0:02:27]} 26. Kg2 {[%clk 0:00:09]}  Qxg4 {[%clk 0:02:22]} 27. Rf3 {[%clk 0:00:09]}  Rch8 {[%clk 0:02:22]} 28. Rg1 {[%clk 0:00:08]}  Rh2+ {[%clk 0:02:22]} 29. Kf1 {[%clk 0:00:08]}  Qxf3+ {[%clk 0:02:23]} 30. Ke1 {[%clk 0:00:07]}  Rxd2 {[%clk 0:02:23]} 31. Kxd2 {[%clk 0:00:08]}  Qf2+ {[%clk 0:02:23]} 32. Kc3 {[%clk 0:00:08]}  Qd4# {[%clk 0:02:22]} 0-1


[Site "https://www.chess.com"]

[Event "Titled Tuesday Blitz June 27 Late 2023"]
[White "Zampronha, Wladimir Camilo"]
[Black "Bjelobrk, Igor"]
[WhiteFideId "2103087"]
[BlackFideId "4300726"]
[WhiteElo "2293"]
[BlackElo "2550"]
[Result "0-1"]
[Round "3"]
[TimeControl "180+2"]
[Date "2023.06.27"]
[WhiteClock "0:00:51"]
[BlackClock "0:00:40"]
[Board "122"]

1. e4 {[%clk 0:03:00]}  e6 {[%clk 0:02:59]} 2. d4 {[%clk 0:03:00]}  d5 {[%clk 0:02:59]} 3. Nc3 {[%clk 0:03:00]}  Bb4 {[%clk 0:02:58]} 4. e5 {[%clk 0:03:01]}  b6 {[%clk 0:02:57]} 5. Nf3 {[%clk 0:02:53]}  Ne7 {[%clk 0:02:44]} 6. Bd2 {[%clk 0:02:52]}  Bxc3 {[%clk 0:02:33]} 7. Bxc3 {[%clk 0:02:51]}  a5 {[%clk 0:02:33]} 8. a4 {[%clk 0:02:45]}  Ba6 {[%clk 0:02:28]} 9. Bb5+ {[%clk 0:02:44]}  c6 {[%clk 0:02:27]} 10. Bxa6 {[%clk 0:02:44]}  Nxa6 {[%clk 0:02:27]} 11. O-O {[%clk 0:02:43]}  O-O {[%clk 0:02:20]} 12. Ne1 {[%clk 0:02:31]}  c5 {[%clk 0:02:20]} 13. f4 {[%clk 0:02:28]}  Nf5 {[%clk 0:02:18]} 14. Qd2 {[%clk 0:02:24]}  cxd4 {[%clk 0:02:11]} 15. Bxd4 {[%clk 0:02:24]}  Nc5 {[%clk 0:02:11]} 16. Nf3 {[%clk 0:02:20]}  Ne4 {[%clk 0:02:10]} 17. Qd3 {[%clk 0:02:16]}  Rc8 {[%clk 0:02:06]} 18. c3 {[%clk 0:02:13]}  Rc4 {[%clk 0:01:56]} 19. Nd2 {[%clk 0:02:01]}  Nxd2 {[%clk 0:01:55]} 20. Qxd2 {[%clk 0:02:02]}  Nxd4 {[%clk 0:01:51]} 21. cxd4 {[%clk 0:02:01]}  Qc7 {[%clk 0:01:52]} 22. f5 {[%clk 0:01:44]}  exf5 {[%clk 0:01:44]} 23. Rxf5 {[%clk 0:01:41]}  Qd7 {[%clk 0:01:35]} 24. Rg5 {[%clk 0:01:30]}  Rc6 {[%clk 0:01:22]} 25. Rf1 {[%clk 0:01:15]}  Rg6 {[%clk 0:01:14]} 26. Rxg6 {[%clk 0:01:13]}  hxg6 {[%clk 0:01:15]} 27. Rc1 {[%clk 0:01:12]}  Qxa4 {[%clk 0:01:13]} 28. h3 {[%clk 0:01:04]}  Qd7 {[%clk 0:01:12]} 29. Qc3 {[%clk 0:01:02]}  Ra8 {[%clk 0:01:09]} 30. Qc6 {[%clk 0:01:00]}  Qxc6 {[%clk 0:01:00]} 31. Rxc6 {[%clk 0:01:00]}  b5 {[%clk 0:01:01]} 32. Rc5 {[%clk 0:01:00]}  b4 {[%clk 0:01:01]} 33. Rxd5 {[%clk 0:01:00]}  a4 {[%clk 0:01:01]} 34. Rb5 {[%clk 0:01:00]}  a3 {[%clk 0:01:01]} 35. bxa3 {[%clk 0:01:00]}  bxa3 {[%clk 0:01:01]} 36. Rb1 {[%clk 0:01:01]}  a2 {[%clk 0:00:52]} 37. Ra1 {[%clk 0:01:00]}  Kf8 {[%clk 0:00:48]} 38. Kf2 {[%clk 0:01:01]}  Ra3 {[%clk 0:00:48]} 39. Ke2 {[%clk 0:01:00]}  Ke7 {[%clk 0:00:49]} 40. Kd2 {[%clk 0:01:00]}  Ke6 {[%clk 0:00:48]} 41. Kc2 {[%clk 0:00:59]}  Kd5 {[%clk 0:00:49]} 42. Kb2 {[%clk 0:00:59]}  Ra7 {[%clk 0:00:49]} 43. Kc3 {[%clk 0:00:56]}  g5 {[%clk 0:00:44]} 44. g3 {[%clk 0:00:55]}  g6 {[%clk 0:00:42]} 45. g4 {[%clk 0:00:54]}  Ra6 {[%clk 0:00:41]} 46. Kd3 {[%clk 0:00:53]}  Ra3+ {[%clk 0:00:40]} 47. Kc2 {[%clk 0:00:51]}  Kxd4 {[%clk 0:00:40]} 0-1


[Site "https://www.chess.com"]

[Event "Titled Tuesday Blitz June 27 Late 2023"]
[White "Ilkhomi, Jaloliddin"]
[Black "Ozen, Batuhan"]
[WhiteFideId "14700948"]
[BlackFideId "6345123"]
[WhiteElo "2550"]
[BlackElo "2311"]
[Result "1-0"]
[Round "3"]
[TimeControl "180+2"]
[Date "2023.06.27"]
[WhiteClock "0:02:14"]
[BlackClock "0:01:08"]
[Board "123"]

1. Nf3 {[%clk 0:03:00]}  c5 {[%clk 0:02:57]} 2. c4 {[%clk 0:03:00]}  Nf6 {[%clk 0:02:55]} 3. g3 {[%clk 0:02:59]}  d5 {[%clk 0:02:55]} 4. cxd5 {[%clk 0:02:59]}  Nxd5 {[%clk 0:02:56]} 5. Bg2 {[%clk 0:02:59]}  Nc6 {[%clk 0:02:56]} 6. O-O {[%clk 0:02:59]}  e5 {[%clk 0:02:56]} 7. Nc3 {[%clk 0:02:58]}  Nc7 {[%clk 0:02:56]} 8. d3 {[%clk 0:02:57]}  Bd6 {[%clk 0:02:55]} 9. Ne4 {[%clk 0:02:56]}  Ne6 {[%clk 0:02:54]} 10. Nxd6+ {[%clk 0:02:56]}  Qxd6 {[%clk 0:02:55]} 11. Be3 {[%clk 0:02:56]}  O-O {[%clk 0:02:52]} 12. Ng5 {[%clk 0:02:54]}  Nxg5 {[%clk 0:02:45]} 13. Bxg5 {[%clk 0:02:55]}  Be6 {[%clk 0:02:39]} 14. Qc2 {[%clk 0:02:51]}  Rac8 {[%clk 0:02:37]} 15. Be3 {[%clk 0:02:50]}  Nd4 {[%clk 0:02:33]} 16. Qd2 {[%clk 0:02:50]}  b6 {[%clk 0:02:29]} 17. Rfc1 {[%clk 0:02:49]}  f5 {[%clk 0:02:28]} 18. Bxd4 {[%clk 0:02:49]}  exd4 {[%clk 0:02:26]} 19. Qf4 {[%clk 0:02:35]}  Rcd8 {[%clk 0:02:03]} 20. Qxd6 {[%clk 0:02:34]}  Rxd6 {[%clk 0:02:04]} 21. a3 {[%clk 0:02:32]}  Bb3 {[%clk 0:01:59]} 22. Re1 {[%clk 0:02:29]}  f4 {[%clk 0:01:58]} 23. Be4 {[%clk 0:02:28]}  h6 {[%clk 0:01:56]} 24. Kg2 {[%clk 0:02:28]}  g5 {[%clk 0:01:56]} 25. f3 {[%clk 0:02:28]}  Kg7 {[%clk 0:01:56]} 26. Rh1 {[%clk 0:02:27]}  Re8 {[%clk 0:01:50]} 27. h4 {[%clk 0:02:26]}  fxg3 {[%clk 0:01:49]} 28. hxg5 {[%clk 0:02:26]}  hxg5 {[%clk 0:01:48]} 29. Rh7+ {[%clk 0:02:26]}  Kf6 {[%clk 0:01:46]} 30. Rah1 {[%clk 0:02:26]}  Rxe4 {[%clk 0:01:36]} 31. fxe4 {[%clk 0:02:20]}  Ke5 {[%clk 0:01:35]} 32. Kxg3 {[%clk 0:02:20]}  Rf6 {[%clk 0:01:33]} 33. R1h6 {[%clk 0:02:19]}  Rxh6 {[%clk 0:01:14]} 34. Rxh6 {[%clk 0:02:20]}  c4 {[%clk 0:01:14]} 35. Kf2 {[%clk 0:02:12]}  c3 {[%clk 0:01:11]} 36. bxc3 {[%clk 0:02:13]}  dxc3 {[%clk 0:01:12]} 37. Ke3 {[%clk 0:02:14]}  c2 {[%clk 0:01:08]} 38. d4# {[%clk 0:02:14]} 1-0


[Site "https://www.chess.com"]

[Event "Titled Tuesday Blitz June 27 Late 2023"]
[White "Bayramov, Zaur"]
[Black "Taranenko, Evgueniy"]
[WhiteFideId "13405080"]
[BlackFideId "14122138"]
[WhiteElo "2548"]
[BlackElo "2291"]
[Result "0-1"]
[Round "3"]
[TimeControl "180+2"]
[Date "2023.06.27"]
[WhiteClock "0:00:40"]
[BlackClock "0:00:20"]
[Board "124"]

1. e4 {[%clk 0:03:00]}  e6 {[%clk 0:02:59]} 2. d4 {[%clk 0:02:59]}  d5 {[%clk 0:03:00]} 3. Nd2 {[%clk 0:03:00]}  Nf6 {[%clk 0:02:59]} 4. e5 {[%clk 0:03:00]}  Nfd7 {[%clk 0:02:59]} 5. Bd3 {[%clk 0:03:01]}  c5 {[%clk 0:03:00]} 6. c3 {[%clk 0:03:01]}  Nc6 {[%clk 0:03:01]} 7. Ne2 {[%clk 0:03:01]}  Be7 {[%clk 0:03:01]} 8. O-O {[%clk 0:03:00]}  b6 {[%clk 0:02:57]} 9. f4 {[%clk 0:03:00]}  f5 {[%clk 0:02:37]} 10. exf6 {[%clk 0:02:56]}  Nxf6 {[%clk 0:02:37]} 11. Nf3 {[%clk 0:02:56]}  O-O {[%clk 0:02:37]} 12. Ne5 {[%clk 0:02:56]}  Nxe5 {[%clk 0:02:35]} 13. fxe5 {[%clk 0:02:55]}  Ne4 {[%clk 0:02:35]} 14. Rxf8+ {[%clk 0:02:51]}  Qxf8 {[%clk 0:02:33]} 15. Be3 {[%clk 0:02:50]}  Bb7 {[%clk 0:02:26]} 16. Bxe4 {[%clk 0:02:43]}  dxe4 {[%clk 0:02:25]} 17. Qb3 {[%clk 0:02:44]}  Bd5 {[%clk 0:02:10]} 18. c4 {[%clk 0:02:43]}  Bb7 {[%clk 0:02:04]} 19. d5 {[%clk 0:02:42]}  Qf5 {[%clk 0:02:04]} 20. d6 {[%clk 0:02:30]}  Bg5 {[%clk 0:01:48]} 21. Bxg5 {[%clk 0:02:22]}  Qxg5 {[%clk 0:01:48]} 22. Qg3 {[%clk 0:02:23]}  Qd2 {[%clk 0:01:25]} 23. Re1 {[%clk 0:02:18]}  Rf8 {[%clk 0:01:05]} 24. h4 {[%clk 0:02:05]}  e3 {[%clk 0:00:56]} 25. d7 {[%clk 0:01:04]}  Rf2 {[%clk 0:00:38]} 26. d8=Q+ {[%clk 0:00:50]}  Qxd8 {[%clk 0:00:36]} 27. Nf4 {[%clk 0:00:50]}  Qd2 {[%clk 0:00:21]} 28. Rxe3 {[%clk 0:00:50]}  Rxf4 {[%clk 0:00:20]} 29. Rd3 {[%clk 0:00:43]}  Qxg2+ {[%clk 0:00:14]} 30. Qxg2 {[%clk 0:00:43]}  Bxg2 {[%clk 0:00:15]} 31. Kxg2 {[%clk 0:00:43]}  Rxc4 {[%clk 0:00:15]} 32. Rd8+ {[%clk 0:00:43]}  Kf7 {[%clk 0:00:15]} 33. Rd7+ {[%clk 0:00:44]}  Kg6 {[%clk 0:00:16]} 34. Rxa7 {[%clk 0:00:44]}  Rc2+ {[%clk 0:00:16]} 35. Kg3 {[%clk 0:00:44]}  Rxb2 {[%clk 0:00:17]} 36. a3 {[%clk 0:00:44]}  h6 {[%clk 0:00:17]} 37. Re7 {[%clk 0:00:42]}  Kf5 {[%clk 0:00:17]} 38. Rxg7 {[%clk 0:00:42]}  Rb3+ {[%clk 0:00:18]} 39. Kg2 {[%clk 0:00:42]}  Rxa3 {[%clk 0:00:19]} 40. Rh7 {[%clk 0:00:41]}  Kxe5 {[%clk 0:00:19]} 41. Rxh6 {[%clk 0:00:42]}  b5 {[%clk 0:00:19]} 42. Rh5+ {[%clk 0:00:42]}  Kd4 {[%clk 0:00:19]} 43. Rh6 {[%clk 0:00:42]}  b4 {[%clk 0:00:18]} 44. Rxe6 {[%clk 0:00:43]}  b3 {[%clk 0:00:19]} 45. Rb6 {[%clk 0:00:43]}  Kc3 {[%clk 0:00:19]} 46. h5 {[%clk 0:00:43]}  c4 {[%clk 0:00:20]} 47. h6 {[%clk 0:00:44]}  Ra5 {[%clk 0:00:20]} 48. Kg3 {[%clk 0:00:43]}  Rh5 {[%clk 0:00:21]} 49. Kg4 {[%clk 0:00:43]}  Rh1 {[%clk 0:00:21]} 50. Rb5 {[%clk 0:00:40]}  b2 {[%clk 0:00:21]} 51. Rh5 {[%clk 0:00:40]}  Rxh5 {[%clk 0:00:20]} 0-1


[Site "https://www.chess.com"]